fUST/lending_fUST_20241221
["ID","MTS","AMOUNT","RATE_DAILY","PERIOD"]
[346163454,1734762643998,-151.0,0.00018066,2]
[346163456,1734762644008,-184.847706,0.00018066,2]
[346163458,1734762644019,-184.847706,0.00018066,2]
[346163460,1734762644028,-151.0,0.00018066,2]
[346163462,1734762644037,-151.0,0.00018066,2]
[346163464,1734762644048,-367.315109,0.00018066,2]
[346163466,1734762644057,-367.315109,0.00018066,2]
[346163468,1734762644066,-367.315109,0.00018066,2]
[346163470,1734762644076,-367.315109,0.00018066,2]
[346163472,1734762644086,-184.968427,0.00018066,2]
[346163474,1734762644095,-184.968427,0.00018066,2]
[346163476,1734762644104,-431.336122,0.00018066,2]
[346163478,1734762644114,-431.336122,0.00018066,2]
[346163480,1734762644123,-431.336122,0.00018066,2]
[346163482,1734762644133,-431.336122,0.00018066,2]
[346163484,1734762644142,-151.0,0.00018066,2]
[346163486,1734762644151,-151.0,0.00018066,2]
[346163488,1734762644160,-268.219803,0.00018066,2]
[346163490,1734762644169,-268.219803,0.00018066,2]
[346163492,1734762644179,-268.219803,0.00018066,2]
[346163494,1734762644188,-268.219803,0.00018066,2]
[346163496,1734762644197,-155.193608,0.00018066,2]
[346163498,1734762644207,-155.193608,0.00018066,2]
[346163500,1734762644216,-155.193608,0.00018066,2]
[346163503,1734762644227,-155.193611,0.00018066,2]
[346163505,1734762644236,-151.0,0.00018066,2]
[346163507,1734762644245,-151.0,0.00018066,2]
[346163509,1734762644254,-316.141655,0.00018066,2]
[346163510,1734762644265,-316.141655,0.00018066,2]
[346163512,1734762644275,-215.649875,0.00018066,2]
[346163514,1734762644284,-215.649867,0.00018066,2]
[346163516,1734762644294,-151.0,0.00018066,2]
[346163518,1734762644303,-151.0,0.00018066,2]
[346163520,1734762644312,-151.0,0.00018067,2]
[346163522,1734762644321,-151.0,0.00018067,2]
[346163524,1734762644331,-153.442738,0.00018067,2]
[346163526,1734762644341,-151.0,0.00018067,2]
[346163529,1734762644351,-151.0,0.00018067,2]
[346163531,1734762644361,-151.0,0.00018067,2]
[346163533,1734762644370,-151.0,0.00018067,2]
[346163534,1734762644379,-151.0,0.00018067,2]
[346163536,1734762644388,-201.094144,0.00018067,2]
[346163538,1734762644398,-151.0,0.00018067,2]
[346163541,1734762644407,-151.0,0.00018067,2]
[346163542,1734762644417,-151.0,0.00018067,2]
[346163544,1734762644426,-151.0,0.00018067,2]
[346163546,1734762644436,-151.0,0.00018067,2]
[346163548,1734762644446,-151.0,0.00018067,2]
[346163550,1734762644455,-151.0,0.00018067,2]
[346163552,1734762644465,-151.0,0.00018067,2]
[346163554,1734762644475,-151.0,0.00018067,2]
[346163556,1734762644484,-151.0,0.00018067,2]
[346163558,1734762644494,-151.0,0.00018067,2]
[346163560,1734762644503,-151.0,0.00018067,2]
[346163562,1734762644513,-151.0,0.00018067,2]
[346163564,1734762644522,-151.0,0.00018067,2]
[346163567,1734762644531,-151.0,0.00018067,2]
[346163569,1734762644541,-281.10173,0.00018067,2]
[346163571,1734762644550,-509.469232,0.00018067,2]
[346163573,1734762644560,-509.469232,0.00018067,2]
[346163575,1734762644569,-218.07028,0.00018067,2]
[346163577,1734762644578,-218.07028,0.00018067,2]
[346163579,1734762644590,-151.0,0.00018067,2]
[346163580,1734762644599,-184.847706,0.00018067,2]
[346163582,1734762644608,-184.8477,0.00018067,2]
[346163585,1734762644618,-184.621015,0.00018067,2]
[346163587,1734762644627,-367.315109,0.00018067,2]
[346163589,1734762644636,-367.315109,0.00018067,2]
[346163591,1734762644645,-367.315109,0.00018067,2]
[346163593,1734762644654,-367.315105,0.00018067,2]
[346163595,1734762644663,-184.968427,0.00018067,2]
[346163597,1734762644673,-184.968426,0.00018067,2]
[346163598,1734762644683,-431.336122,0.00018067,2]
[346163600,1734762644692,-431.336122,0.00018067,2]
[346163603,1734762644701,-431.336122,0.00018067,2]
[346163604,1734762644710,-431.33613,0.00018067,2]
[346163606,1734762644720,-268.219803,0.00018067,2]
[346163608,1734762644729,-268.219803,0.00018067,2]
[346163610,1734762644738,-151.0,0.00018067,2]
[346163612,1734762644748,-151.0,0.00018067,2]
[346163615,1734762644759,-153.796033,0.00018068,2]
[346163617,1734762644771,-22905.97013916,0.00018069,2]
[346163619,1734762644781,-162.00152,0.00018069,2]
[346163621,1734762644790,-151.0,0.00018069,2]
[346163623,1734762644799,-509.469232,0.00018069,2]
[346163625,1734762644809,-509.469232,0.00018069,2]
[346163627,1734762644818,-218.07028,0.00018069,2]
[346163629,1734762644827,-218.07028,0.00018069,2]
[346163631,1734762644837,-151.0,0.00018069,2]
[346163633,1734762644846,-153.0,0.000182,2]
[346163635,1734762644855,-913.88081109,0.00018237,2]
[346163637,1734762644863,-75.83406023,0.000183,2]
[346163679,1734762645282,8251.65520365,0.0001725,2]
[346163683,1734762645315,1748.34479635,0.0001725,2]
[346163804,1734762646255,-305.416,0.00018,2]
[346163807,1734762646265,-152.0,0.0001806,2]
[346163810,1734762646279,-276.19525977,0.000183,2]
[346163813,1734762646288,-10568.08608118,0.00018312,2]
[346163816,1734762646297,-306.7432284,0.00018356,2]
[346163819,1734762646307,-706.98673093,0.0001837,2]
[346163822,1734762646316,-151.0,0.00018372,2]
[346163824,1734762646325,-151.0,0.00018373,2]
[346163826,1734762646335,-151.0,0.00018501,2]
[346163828,1734762646344,-151.0,0.00018501,2]
[346163830,1734762646354,-509.469232,0.00018501,2]
[346163832,1734762646363,-509.469232,0.00018501,2]
[346163834,1734762646372,-218.07028,0.00018501,2]
[346163836,1734762646381,-218.07028,0.00018501,2]
[346163838,1734762646390,-257.785615,0.00018501,2]
[346163840,1734762646399,-913.88081109,0.00018514,2]
[346163842,1734762646408,-151.0,0.00018519,2]
[346163844,1734762646418,-509.469232,0.0001856,2]
[346163846,1734762646427,-509.46923,0.0001856,2]
[346163848,1734762646436,-218.07028,0.0001856,2]
[346163850,1734762646445,-218.070274,0.0001856,2]
[346163852,1734762646455,-500.0,0.0001863,2]
[346163855,1734762646464,-242.07714799,0.0001863,2]
[346163857,1734762646475,-153.2926313,0.00018681,2]
[346163859,1734762646484,-1006.3196156,0.00018681,2]
[346163861,1734762646493,-151.0,0.00018685,2]
[346163863,1734762646502,-151.0,0.00018685,2]
[346163865,1734762646511,-151.0,0.00018685,2]
[346163866,1734762646521,-151.0,0.00018685,2]
[346163868,1734762646530,-151.0,0.00018685,2]
[346163870,1734762646540,-151.0,0.00018685,2]
[346163873,1734762646549,-210.41029,0.00018685,2]
[346163875,1734762646560,-256.248203,0.00018685,2]
[346163877,1734762646569,-151.0,0.00018685,2]
[346163879,1734762646579,-220.112462,0.00018686,2]
[346163881,1734762646589,-151.0,0.00018687,2]
[346163883,1734762646598,-1909.352502,0.00018756,2]
[346163885,1734762646606,-913.88081109,0.00018791,2]
[346163887,1734762646615,-151.0,0.00018904,2]
[346163889,1734762646624,-151.0,0.00018904,2]
[346163891,1734762646633,-5000.0,0.00018904,7]
[346163893,1734762646642,-5000.0,0.00018904,2]
[346163895,1734762646651,-1151.54482295,0.00018904,2]
[346163897,1734762646667,-135.28392618,0.00018904,2]
[346163899,1734762646677,-151.0,0.00018945,2]
[346163901,1734762646686,-979.73303475,0.00018978,2]
[346163903,1734762646695,-153.910205,0.00018994,2]
[346163906,1734762646705,-151.0,0.00018994,2]
[346163908,1734762646714,-500.0,0.00019,2]
[346163910,1734762646723,-979.73303473,0.00019003,2]
[346163912,1734762646733,-153.74164,0.0001901,2]
[346163914,1734762646742,-151.0,0.00019028,2]
[346163916,1734762646752,-979.73303473,0.00019028,2]
[346163918,1734762646761,-979.73303473,0.00019053,2]
[346163920,1734762646771,-913.88081109,0.00019069,2]
[346163922,1734762646780,-151.0,0.00019078,2]
[346163924,1734762646790,-151.0,0.00019078,2]
[346163926,1734762646799,-151.0,0.00019078,2]
[346163928,1734762646808,-151.0,0.00019078,2]
[346163929,1734762646818,-151.0,0.00019078,2]
[346163931,1734762646827,-249.013472,0.00019078,2]
[346163934,1734762646837,-2606.92200996,0.00019078,2]
[346163936,1734762646846,-979.73303473,0.00019078,2]
[346163938,1734762646855,-206212.93504906,0.00019078,7]
[346163940,1734762646865,-666.0,0.00019078,2]
[346163942,1734762646874,-151.0,0.000191,2]
[346163944,1734762646886,-151.0,0.000191,2]
[346163946,1734762646895,-151.0,0.000191,2]
[346163948,1734762646904,-151.0,0.000191,2]
[346163950,1734762646913,-151.0,0.000191,2]
[346163952,1734762646921,-3023.58369069,0.000191,2]
[346163954,1734762646932,-587.55827618,0.000191,2]
[346163956,1734762646940,-500.0,0.00019173,2]
[346163958,1734762646949,-518.86896153,0.00019173,2]
[346163960,1734762646960,-500.0,0.00019173,2]
[346163962,1734762646969,-328.78968107,0.00019173,2]
[346163964,1734762646979,-322.41325322,0.00019173,2]
[346163966,1734762646988,-500.0,0.00019173,2]
[346163968,1734762646996,-500.0,0.00019173,2]
[346163970,1734762647006,-500.0,0.00019173,2]
[346163972,1734762647015,-500.0,0.00019173,2]
[346163974,1734762647026,-460.28601903,0.00019173,2]
[346163976,1734762647034,-219.39440924,0.00019173,2]
[346163978,1734762647044,-203.83238841,0.00019173,2]
[346163980,1734762647053,-506.16749595,0.00019173,2]
[346163982,1734762647062,-500.0,0.00019173,2]
[346163984,1734762647071,-500.0,0.00019173,2]
[346163986,1734762647080,-314.96377085,0.00019173,2]
[346163988,1734762647089,-500.0,0.00019173,2]
[346163990,1734762647098,-262.94930725,0.00019173,2]
[346163992,1734762647107,-500.0,0.00019173,2]
[346163994,1734762647116,-500.0,0.00019173,2]
[346163996,1734762647125,-500.0,0.00019173,2]
[346163998,1734762647134,-397.9238364,0.00019173,2]
[346164000,1734762647143,-500.36463047,0.00019173,2]
[346164002,1734762647152,-500.0,0.00019173,2]
[346164004,1734762647161,-500.52805135,0.00019173,2]
[346164006,1734762647170,-425.55226011,0.00019173,2]
[346164008,1734762647179,-500.0,0.00019173,2]
[346164010,1734762647189,-502.30874139,0.00019173,2]
[346164012,1734762647198,-500.0,0.00019173,2]
[346164014,1734762647207,-151.98832112,0.00019173,2]
[346164016,1734762647217,-614.26761967,0.00019173,2]
[346164018,1734762647226,-500.0,0.00019173,2]
[346164020,1734762647235,-500.0,0.00019173,2]
[346164022,1734762647244,-151.0,0.00019173,2]
[346164024,1734762647253,-151.0,0.00019173,2]
[346164026,1734762647263,-151.0,0.00019173,2]
[346164028,1734762647275,-299.076929,0.00019173,2]
[346164030,1734762647285,-151.0,0.00019173,2]
[346164032,1734762647295,-151.0,0.00019178,2]
[346164034,1734762647305,-152.853212,0.00019178,2]
[346164037,1734762647315,-151.0,0.00019178,2]
[346164039,1734762647324,-151.0,0.00019178,2]
[346164041,1734762647333,-151.0,0.00019178,2]
[346164043,1734762647342,-166.404295,0.00019178,2]
[346164045,1734762647351,-151.0,0.00019178,2]
[346164047,1734762647361,-151.0,0.00019178,2]
[346164048,1734762647370,-151.0,0.00019178,2]
[346164050,1734762647379,-151.0,0.00019178,2]
[346164053,1734762647390,-151.0,0.00019178,2]
[346164055,1734762647399,-151.0,0.00019178,2]
[346164057,1734762647408,-213.32021,0.00019178,2]
[346164058,1734762647418,-500.0,0.00019178,2]
[346164061,1734762647427,-500.0,0.00019178,2]
[346164063,1734762647436,-500.0,0.00019178,2]
[346164065,1734762647445,-500.0,0.00019178,2]
[346164067,1734762647454,-500.0,0.00019178,2]
[346164069,1734762647464,-500.0,0.00019178,2]
[346164071,1734762647473,-500.0,0.00019178,2]
[346164073,1734762647482,-500.0,0.00019178,2]
[346164075,1734762647492,-500.0,0.00019178,2]
[346164077,1734762647502,-500.0,0.00019178,2]
[346164079,1734762647511,-500.82091988,0.00019178,2]
[346164080,1734762647522,-500.0,0.00019178,2]
[346164083,1734762647531,-500.0,0.00019178,2]
[346164084,1734762647541,-500.0,0.00019178,2]
[346164087,1734762647551,-500.0,0.00019178,2]
[346164089,1734762647560,-500.0,0.00019178,2]
[346164091,1734762647570,-500.0,0.00019178,2]
[346164092,1734762647580,-255.04562945,0.00019178,2]
[346164094,1734762647591,-500.0,0.00019178,2]
[346164096,1734762647601,-500.0,0.00019178,2]
[346164099,1734762647612,-500.0,0.00019178,2]
[346164100,1734762647621,-500.0,0.00019178,2]
[346164103,1734762647631,-609.77901235,0.00019178,2]
[346164105,1734762647640,-640.04785315,0.00019178,2]
[346164106,1734762647649,-534.63282983,0.00019178,2]
[346164109,1734762647659,-500.0,0.00019178,2]
[346164110,1734762647668,-601.80954938,0.00019178,2]
[346164113,1734762647677,-500.0,0.00019178,2]
[346164114,1734762647687,-515.51,0.00019178,2]
[346164116,1734762647697,-1066.58,0.00019178,2]
[346164119,1734762647706,-620.07478498,0.00019178,2]
[346164121,1734762647715,-500.0,0.00019178,2]
[346164123,1734762647724,-500.0,0.00019178,2]
[346164125,1734762647733,-500.0,0.00019178,2]
[346164127,1734762647742,-500.0,0.00019178,2]
[346164129,1734762647752,-500.0,0.00019178,2]
[346164131,1734762647761,-500.0,0.00019178,2]
[346164133,1734762647772,-500.0,0.00019178,2]
[346164135,1734762647781,-500.0,0.00019178,2]
[346164137,1734762647790,-500.0,0.00019178,2]
[346164139,1734762647800,-500.0,0.00019178,2]
[346164141,1734762647809,-791.07,0.00019178,2]
[346164143,1734762647819,-500.0,0.00019178,2]
[346164145,1734762647828,-500.0,0.00019178,2]
[346164147,1734762647838,-500.0,0.00019178,2]
[346164149,1734762647847,-500.0,0.00019178,2]
[346164151,1734762647856,-500.0,0.00019178,2]
[346164153,1734762647865,-500.0,0.00019178,2]
[346164155,1734762647874,-500.0,0.00019178,2]
[346164157,1734762647884,-500.0,0.00019178,2]
[346164159,1734762647894,-889.39,0.00019178,2]
[346164161,1734762647903,-500.0,0.00019178,2]
[346164163,1734762647912,-500.0,0.00019178,2]
[346164165,1734762647922,-199.04710025,0.00019178,2]
[346164167,1734762647931,-500.0,0.00019178,2]
[346164169,1734762647940,-501.16735097,0.00019178,2]
[346164171,1734762647950,-500.0,0.00019178,2]
[346164173,1734762647960,-500.0,0.00019178,2]
[346164175,1734762647970,-500.0,0.00019178,2]
[346164177,1734762647979,-500.0,0.00019178,2]
[346164179,1734762647988,-500.0,0.00019178,2]
[346164181,1734762647997,-502.91629993,0.00019178,2]
[346164183,1734762648006,-500.0,0.00019178,2]
[346164184,1734762648015,-500.0,0.00019178,2]
[346164186,1734762648026,-500.0,0.00019178,2]
[346164188,1734762648035,-500.0,0.00019178,2]
[346164190,1734762648044,-500.0,0.00019178,2]
[346164192,1734762648055,-500.0,0.00019178,2]
[346164195,1734762648064,-500.0,0.00019178,2]
[346164197,1734762648074,-500.0,0.00019178,2]
[346164199,1734762648083,-500.0,0.00019178,2]
[346164200,1734762648092,-500.0,0.00019178,2]
[346164203,1734762648102,-500.0,0.00019178,2]
[346164204,1734762648111,-500.0,0.00019178,2]
[346164206,1734762648121,-500.0,0.00019178,2]
[346164208,1734762648130,-500.0,0.00019178,2]
[346164211,1734762648139,-500.0,0.00019178,2]
[346164213,1734762648149,-500.0,0.00019178,2]
[346164215,1734762648158,-500.0,0.00019178,2]
[346164217,1734762648168,-500.0,0.00019178,2]
[346164219,1734762648178,-500.0,0.00019178,2]
[346164221,1734762648188,-500.0,0.00019178,2]
[346164223,1734762648197,-500.0,0.00019178,2]
[346164225,1734762648206,-500.0,0.00019178,2]
[346164227,1734762648216,-500.0,0.00019178,2]
[346164229,1734762648225,-500.0,0.00019178,2]
[346164231,1734762648234,-500.0,0.00019178,2]
[346164233,1734762648243,-500.0,0.00019178,2]
[346164235,1734762648253,-431.88934855,0.00019178,2]
[346164237,1734762648263,-500.0,0.00019178,2]
[346164239,1734762648274,-500.0,0.00019178,2]
[346164241,1734762648283,-500.0,0.00019178,2]
[346164243,1734762648292,-500.0,0.00019178,2]
[346164245,1734762648302,-500.0,0.00019178,2]
[346164247,1734762648311,-500.0,0.00019178,2]
[346164249,1734762648320,-500.0,0.00019178,2]
[346164251,1734762648329,-500.0,0.00019178,2]
[346164253,1734762648339,-500.0,0.00019178,2]
[346164255,1734762648348,-500.0,0.00019178,2]
[346164257,1734762648357,-500.0,0.00019178,2]
[346164259,1734762648366,-500.0,0.00019178,2]
[346164261,1734762648375,-500.0,0.00019178,2]
[346164263,1734762648384,-500.0,0.00019178,2]
[346164265,1734762648394,-500.0,0.00019178,2]
[346164267,1734762648403,-500.0,0.00019178,2]
[346164269,1734762648412,-500.0,0.00019178,2]
[346164271,1734762648422,-200.0,0.00019178,2]
[346164273,1734762648432,-500.0,0.00019178,2]
[346164275,1734762648441,-500.0,0.00019178,2]
[346164277,1734762648451,-500.0,0.00019178,2]
[346164279,1734762648460,-500.0,0.00019178,2]
[346164281,1734762648469,-357.37480192,0.00019178,2]
[346164302,1734762648667,-192.0,0.00018466,2]
[346164304,1734762648677,-142.62519808,0.00019178,2]
[346164306,1734762648687,-372.3741699,0.00019178,2]
[346164308,1734762648698,-127.6258301,0.00019178,2]
[346164310,1734762648708,-432.99083751,0.00019178,2]
[346167529,1734762691526,10000.0,0.0001725,2]
[346167531,1734762759391,192.939322,0.00013973,2]
[346167532,1734762817317,346.23793875,0.00017251,2]
[346167533,1734762827963,185.6284939,0.0001631,2]
[346167534,1734762836783,857.839109,0.00017169,2]
[346167535,1734762934821,197.4939928,0.00017122,2]
[346167536,1734763005146,15129.4193563,0.00017169,2]
[346167537,1734763060437,7385.976737,0.00017247,2]
[346167538,1734763077400,10000.0,0.0001725,2]
[346167539,1734763098585,10000.0,0.0001725,2]
[346167540,1734763179641,10000.0,0.0001725,2]
[346167542,1734763223351,10000.0,0.0001725,2]
[346167543,1734763236004,10000.0,0.0001725,2]
[346167544,1734763252223,10000.0,0.000221,60]
[346167548,1734763591609,20316.2472413,0.00016756,2]
[346167551,1734763676926,243.017334,0.00013973,2]
[346167552,1734763753485,593.552624,0.00016709,2]
[346167553,1734763759915,316.43987956,0.0001722,2]
[346167628,1734763838812,-223.84076019,0.00017385,2]
[346167631,1734763838823,-300.0,0.00017484,2]
[346167633,1734763838833,-344.17934395,0.00017491,2]
[346167635,1734763838842,-62.19058309,0.00017492,2]
[346167637,1734763838854,-3762.20360047,0.00017492,2]
[346167857,1734763841034,-5948.40200595,0.00017492,2]
[346167859,1734763841043,-155.0,0.00017496,2]
[346167861,1734763841053,-9772.79618951,0.00017801,2]
[346167863,1734763841062,-9772.79618951,0.00017823,2]
[346167865,1734763841071,-342.70530422,0.00017895,2]
[346167866,1734763841080,-178.39282765,0.00017937,2]
[346167868,1734763841089,-500.0,0.00017994,2]
[346167870,1734763841098,-360.66974099,0.00017994,2]
[346167872,1734763841107,-157.74458346,0.00017994,2]
[346167874,1734763841117,-413.25897102,0.00017994,2]
[346167876,1734763841126,-500.0,0.00017994,2]
[346167878,1734763841135,-387.42801801,0.00017994,2]
[346167880,1734763841145,-500.0,0.00017994,2]
[346167882,1734763841157,-281.13351359,0.00017994,2]
[346167884,1734763841166,-500.0,0.00017994,2]
[346167886,1734763841175,-523.69406117,0.00017994,2]
[346167888,1734763841184,-500.0,0.00017994,2]
[346167890,1734763841193,-500.0,0.00017994,2]
[346167892,1734763841202,-500.0,0.00017994,2]
[346167894,1734763841212,-500.0,0.00017994,2]
[346167896,1734763841221,-500.0,0.00017994,2]
[346167898,1734763841230,-500.0,0.00017994,2]
[346167900,1734763841239,-500.0,0.00017994,2]
[346167902,1734763841251,-500.0,0.00017994,2]
[346167904,1734763841261,-500.0,0.00017994,2]
[346167906,1734763841270,-500.0,0.00017994,2]
[346167907,1734763841280,-500.0,0.00017994,2]
[346167909,1734763841290,-500.0,0.00017994,2]
[346167911,1734763841300,-467.8568748,0.00017994,2]
[346167913,1734763841310,-500.0,0.00017994,2]
[346167915,1734763841319,-5164.75756255,0.00018,2]
[346167917,1734763841329,-6813.55715757,0.00018,2]
[346167920,1734763841346,-9865.3991,0.00018,2]
[346168391,1734763845958,12865.4640295,0.00016913,2]
[346173921,1734763967043,1596.2730915,0.00017116,2]
[346174053,1734764319113,201.2828406,0.00017209,2]
[346174056,1734764362462,10000.0,0.000221,60]
[346174057,1734764372629,10000.0,0.000221,60]
[346174060,1734764380662,1919.1341037,0.00017044,2]
[346174061,1734764394279,3740.0,0.000221,60]
[346174062,1734764432246,2098.7810092,0.0001718,2]
[346174064,1734764594192,239.071696,0.00013973,2]
[346174065,1734764625235,5002.46,0.00025,120]
[346174066,1734764648650,296.776312,0.00016923,2]
[346174076,1734765032379,-300.0,0.00017535,2]
[346174077,1734765032389,-179.713,0.0001764,2]
[346174078,1734765032399,-201.65742765,0.0001764,2]
[346174079,1734765032409,-1887.93346712,0.00017763,2]
[346174080,1734765032420,-1794.18095559,0.00017763,2]
[346174101,1734765037884,-586.48494287,0.00017763,2]
[346174109,1734765037960,-1075.0,0.00017763,2]
[346174116,1734765038031,-1078.107955,0.00017763,2]
[346174124,1734765038101,-987.21590508,0.00017763,2]
[346174899,1734765046346,-286.88761145,0.00017763,2]
[346179466,1734765119174,24900.0,0.00017003,2]
[346179469,1734765534998,313.908295,0.00017052,2]
[346179474,1734765646213,227.118111,0.00013973,2]
[346179475,1734765720809,374.957705,0.00016915,2]
[346179476,1734765727121,232.1266395,0.00016915,2]
[346179478,1734765929195,1938.1892788,0.00016908,2]
[346179481,1734765972553,4932.2182932,0.00016945,2]
[346179604,1734766238877,-1695.17649006,0.00017265,2]
[346179606,1734766238889,-670.89738549,0.00017265,2]
[346179716,1734766240150,10000.0,0.0001725,2]
[346180063,1734766243377,-2395.24355095,0.00017265,2]
[346180069,1734766243438,-5806.76865468,0.00017265,2]
[346180071,1734766243448,-300.0,0.00017467,2]
[346180073,1734766243458,-179.713,0.0001764,2]
[346180075,1734766243468,-349.98968914,0.000177,2]
[346180077,1734766243478,-1306.57088764,0.00017711,2]
[346180079,1734766243487,-467.04440727,0.000179,2]
[346180080,1734766243496,-169.29934013,0.00017999,2]
[346180082,1734766243505,-500.0,0.00017999,2]
[346180084,1734766243514,-500.0,0.00017999,2]
[346180086,1734766243524,-441.81824082,0.00017999,2]
[346180088,1734766243534,-558365.30374243,0.00018,2]
[346180090,1734766243543,-176.33,0.00018,2]
[346180091,1734766243553,-467.04440721,0.00018186,2]
[346180093,1734766243563,-332.605,0.0001822,2]
[346180095,1734766243573,-169.92,0.00018322,2]
[346180097,1734766243582,-155.87684334,0.0001837,2]
[346180099,1734766243591,-467.04440721,0.00018471,2]
[346180101,1734766243601,-467.04440721,0.00018757,2]
[346180103,1734766243611,-151.0,0.000189,2]
[346180105,1734766243621,-954.676251,0.00018986,2]
[346180107,1734766243631,-173.49103098,0.00019,2]
[346180108,1734766243640,-8847.0,0.00019,2]
[346180110,1734766243649,-8877.0,0.00019,2]
[346180112,1734766243659,-14494.67425135,0.00019,2]
[346180114,1734766243668,-153.0,0.0001903,2]
[346180116,1734766243677,-153.0,0.0001903,2]
[346180118,1734766243688,-153.0,0.0001903,2]
[346180120,1734766243698,-153.0,0.0001903,2]
[346180122,1734766243710,-153.0,0.0001903,2]
[346180124,1734766243719,-467.04440721,0.00019043,2]
[346180126,1734766243728,-420.0,0.00019069,2]
[346180128,1734766243737,-2346.229809,0.00019078,2]
[346180130,1734766243746,-666.0,0.00019078,2]
[346180131,1734766243755,-151.0,0.000191,2]
[346180133,1734766243765,-500.0,0.00019173,2]
[346180135,1734766243774,-500.0,0.00019173,2]
[346180137,1734766243783,-500.0,0.00019173,2]
[346180139,1734766243792,-151.0,0.00019177,2]
[346180141,1734766243802,-500.0,0.00019178,2]
[346180143,1734766243811,-500.0,0.00019178,2]
[346180144,1734766243820,-500.0,0.00019178,2]
[346180146,1734766243830,-503.54533713,0.00019178,2]
[346180148,1734766243840,-500.0,0.00019178,2]
[346180150,1734766243848,-500.0,0.00019178,2]
[346180152,1734766243858,-500.0,0.00019178,2]
[346180154,1734766243867,-500.0,0.00019178,2]
[346180156,1734766243876,-500.0,0.00019178,2]
[346180157,1734766243885,-500.0,0.00019178,2]
[346180159,1734766243895,-500.0,0.00019178,2]
[346180161,1734766243904,-500.0,0.00019178,2]
[346180163,1734766243914,-500.0,0.00019178,2]
[346180165,1734766243923,-500.0,0.00019178,2]
[346180167,1734766243932,-500.0,0.00019178,2]
[346180168,1734766243941,-500.0,0.00019178,2]
[346180170,1734766243953,-500.0,0.00019178,2]
[346180172,1734766243962,-500.0,0.00019178,2]
[346180174,1734766243971,-556.75509054,0.00019178,2]
[346180176,1734766243982,-500.0,0.00019178,2]
[346180178,1734766243991,-647.71884339,0.00019178,2]
[346180179,1734766244000,-500.0,0.00019178,2]
[346180181,1734766244010,-500.0,0.00019178,2]
[346180183,1734766244019,-500.0,0.00019178,2]
[346180185,1734766244030,-501.20977484,0.00019178,2]
[346180187,1734766244039,-500.0,0.00019178,2]
[346180189,1734766244048,-502.1628491,0.00019178,2]
[346180191,1734766244057,-501.05839953,0.00019178,2]
[346180192,1734766244068,-500.0,0.00019178,2]
[346180194,1734766244077,-500.0,0.00019178,2]
[346180196,1734766244086,-500.0,0.00019178,2]
[346180198,1734766244095,-500.0,0.00019178,2]
[346180200,1734766244105,-500.0,0.00019178,2]
[346180202,1734766244115,-500.0,0.00019178,2]
[346180204,1734766244124,-500.0,0.00019178,2]
[346180206,1734766244134,-500.0,0.00019178,2]
[346180207,1734766244143,-500.0,0.00019178,2]
[346180209,1734766244152,-214.96085495,0.00019178,2]
[346180227,1734766244341,-500.0,0.00019178,2]
[346180229,1734766244351,-758.11,0.00019178,2]